fUST/lending_fUST_20251012
["ID","MTS","AMOUNT","RATE_DAILY","PERIOD"]
[390910694,1760212233256,-225.34,0.00022585,2]
[390910695,1760212233266,-500.0,0.00022585,2]
[390910696,1760212233276,-581.97435177,0.00022585,2]
[390910697,1760212233285,-500.0,0.00022585,2]
[390910698,1760212233299,-500.0,0.00022585,2]
[390910699,1760212233308,-303.50075478,0.00022585,2]
[390910700,1760212233318,-500.0,0.00022585,2]
[390910701,1760212233327,-500.0,0.00022585,2]
[390910702,1760212233336,-500.0,0.00022585,2]
[390910703,1760212233347,-500.0,0.00022585,2]
[390910704,1760212233356,-500.0,0.00022585,2]
[390910705,1760212233365,-500.0,0.00022585,2]
[390910706,1760212233375,-500.0,0.00022585,2]
[390910707,1760212233384,-487.82898846,0.00022585,2]
[390910708,1760212233394,-500.0,0.00022585,2]
[390910709,1760212233403,-500.0,0.00022585,2]
[390910710,1760212233413,-500.0,0.00022585,2]
[390910711,1760212233422,-500.0,0.00022585,2]
[390910712,1760212233431,-500.0,0.00022585,2]
[390910713,1760212233441,-500.0,0.00022585,2]
[390910714,1760212233450,-500.0,0.00022585,2]
[390910715,1760212233459,-643.72,0.00022585,2]
[390910716,1760212233468,-500.0,0.00022585,2]
[390910717,1760212233478,-500.0,0.00022585,2]
[390910718,1760212233487,-500.0,0.00022585,2]
[390910719,1760212233496,-500.0,0.00022585,2]
[390910720,1760212233505,-500.0,0.00022585,2]
[390910721,1760212233515,-500.0,0.00022585,2]
[390910722,1760212233524,-500.0,0.00022585,2]
[390910723,1760212233534,-306.88,0.00022585,2]
[390910724,1760212233543,-500.0,0.00022585,2]
[390910725,1760212233553,-500.0,0.00022585,2]
[390910726,1760212233562,-500.0,0.00022585,2]
[390910727,1760212233571,-500.0,0.00022585,2]
[390910728,1760212233581,-500.0,0.00022585,2]
[390910729,1760212233590,-500.0,0.00022585,2]
[390910730,1760212233599,-500.0,0.00022585,2]
[390910731,1760212233608,-500.0,0.00022585,2]
[390910732,1760212233618,-500.0,0.00022585,2]
[390910733,1760212233627,-500.0,0.00022585,2]
[390910734,1760212233636,-500.0,0.00022585,2]
[390910735,1760212233646,-500.0,0.00022585,2]
[390910736,1760212233655,-500.0,0.00022585,2]
[390910737,1760212233665,-618.62,0.00022585,2]
[390910738,1760212233675,-500.0,0.00022585,2]
[390910739,1760212233684,-500.0,0.00022585,2]
[390910740,1760212233694,-500.0,0.00022586,2]
[390910742,1760212233703,-500.0,0.00022586,2]
[390910744,1760212233713,-500.0,0.00022589,2]
[390910746,1760212233722,-500.0,0.00022589,2]
[390910748,1760212233732,-500.0,0.00022589,2]
[390910750,1760212233741,-500.0,0.00022589,2]
[390910752,1760212233751,-500.0,0.00022589,2]
[390910754,1760212233760,-500.0,0.00022589,2]
[390910756,1760212233770,-500.0,0.00022589,2]
[390910758,1760212233779,-549.95,0.00022589,2]
[390910760,1760212233790,-500.0,0.00022589,2]
[390910762,1760212233799,-536.12,0.00022589,2]
[390910764,1760212233809,-500.0,0.00022589,2]
[390910766,1760212233819,-500.0,0.00022589,2]
[390910768,1760212233828,-500.0,0.00022589,2]
[390910770,1760212233846,-500.0,0.0002259,2]
[390910773,1760212233857,-500.0,0.0002259,2]
[390910775,1760212233866,-500.0,0.0002259,2]
[390910777,1760212233877,-500.0,0.0002259,2]
[390910779,1760212233887,-500.0,0.0002259,2]
[390910781,1760212233897,-445.26310031,0.0002259,2]
[390910783,1760212233906,-500.0,0.0002259,2]
[390910785,1760212233916,-349.03222939,0.0002259,2]
[390910787,1760212233926,-609.12886805,0.0002259,2]
[390910789,1760212233938,-500.0,0.0002259,2]
[390910791,1760212233950,-500.87138149,0.0002259,2]
[390910793,1760212233959,-500.0,0.0002259,2]
[390910795,1760212233968,-500.0,0.0002259,2]
[390910797,1760212233979,-507.35,0.0002259,2]
[390910799,1760212233988,-500.0,0.0002259,2]
[390910801,1760212233997,-500.0,0.0002259,2]
[390910802,1760212234008,-500.0,0.0002259,2]
[390910804,1760212234020,-423.4216392,0.0002299,2]
[390910805,1760212234030,-173.82450459,0.00023,2]
[390910806,1760212234041,-173.82450459,0.00023,2]
[390910807,1760212234051,-173.82450459,0.00023,2]
[390910808,1760212234060,-225.41858693,0.000231,2]
[390910809,1760212234070,-1000.0,0.00023121,2]
[390910810,1760212234237,-1000.0,0.00023121,2]
[390910811,1760212234248,-614.97804963,0.00023398,2]
[390910812,1760212234258,-518.56550318,0.00023464,2]
[390910813,1760212234268,-1551.1645162,0.00023464,2]
[390910814,1760212234277,-151.0,0.000235,13]
[390910815,1760212234287,-730.60310135,0.00023545,2]
[390910816,1760212234297,-481.68,0.00023553,10]
[390910817,1760212234306,-401.4,0.00023553,10]
[390910818,1760212234316,-500.0,0.00023553,2]
[390910819,1760212234326,-500.0,0.00023553,2]
[390910820,1760212234335,-500.0,0.00023553,2]
[390910821,1760212234344,-500.0,0.00023553,2]
[390910822,1760212234354,-500.0,0.00023553,2]
[390910823,1760212234363,-500.0,0.00023553,2]
[390910824,1760212234373,-500.0,0.00023553,2]
[390910825,1760212234382,-500.0,0.00023553,2]
[390910826,1760212234392,-500.0,0.00023553,2]
[390910827,1760212234401,-482.14129665,0.00023553,2]
[390910828,1760212234412,-500.0,0.00023553,2]
[390910829,1760212234422,-481.16745673,0.00023553,2]
[390910830,1760212234434,-500.0,0.00023553,2]
[390910831,1760212234444,-500.0,0.00023553,2]
[390910832,1760212234453,-500.0,0.00023553,2]
[390910833,1760212234463,-500.0,0.00023553,2]
[390910834,1760212234472,-500.0,0.00023553,2]
[390910835,1760212234482,-633.47510413,0.00023553,2]
[390910836,1760212234491,-500.0,0.00023553,2]
[390910837,1760212234500,-500.0,0.00023553,2]
[390910838,1760212234510,-500.0,0.00023553,2]
[390910839,1760212234519,-500.0,0.00023553,2]
[390910840,1760212234528,-500.0,0.00023553,2]
[390910841,1760212234538,-500.0,0.00023553,2]
[390910842,1760212234547,-500.0,0.00023553,2]
[390910843,1760212234556,-500.0,0.00023553,2]
[390910844,1760212234566,-495.20108318,0.00023553,2]
[390910845,1760212234575,-254.62738088,0.00023553,2]
[390910846,1760212234585,-500.0,0.00023553,2]
[390910847,1760212234594,-500.0,0.00023553,2]
[390910848,1760212234604,-500.0,0.00023553,2]
[390910849,1760212234614,-500.0,0.00023553,2]
[390910850,1760212234625,-500.0,0.00023553,2]
[390910851,1760212234636,-500.0,0.00023553,2]
[390910852,1760212234647,-500.0,0.00023553,2]
[390910853,1760212234657,-500.0,0.00023553,2]
[390910854,1760212234666,-500.0,0.00023553,2]
[390910855,1760212234675,-500.0,0.00023553,2]
[390910856,1760212234685,-500.0,0.00023553,2]
[390910857,1760212234695,-500.0,0.00023553,2]
[390910858,1760212234705,-500.0,0.00023553,2]
[390910859,1760212234714,-500.0,0.00023553,2]
[390910860,1760212234726,-500.0,0.00023553,2]
[390910861,1760212234737,-500.0,0.00023553,2]
[390910862,1760212234747,-287.72338542,0.00023553,2]
[390910863,1760212234756,-682.49,0.00023554,3]
[390910864,1760212234766,-500.0,0.0002356,2]
[390910865,1760212234775,-500.0,0.00023562,2]
[390910866,1760212234784,-500.0,0.00023562,2]
[390910867,1760212234794,-500.0,0.00023562,2]
[390910868,1760212234803,-500.0,0.00023563,2]
[390910869,1760212234812,-500.0,0.00023563,2]
[390910870,1760212234821,-500.0,0.00023563,2]
[390910871,1760212234831,-518.32,0.00023563,2]
[390910872,1760212234840,-500.0,0.00023563,2]
[390910873,1760212234849,-500.0,0.00023563,2]
[390910874,1760212234858,-500.0,0.00023563,2]
[390910875,1760212234867,-500.0,0.00023563,2]
[390910876,1760212234876,-500.0,0.00023563,2]
[390910877,1760212234885,-428.0629555,0.00023563,2]
[390910878,1760212234895,-500.0,0.00023563,2]
[390910879,1760212234904,-500.0,0.00023563,2]
[390910880,1760212234913,-500.0,0.00023563,2]
[390910881,1760212234922,-500.0,0.00023563,2]
[390910882,1760212234932,-500.0,0.00023563,2]
[390910883,1760212234944,-500.0,0.00023563,2]
[390910884,1760212234953,-500.0,0.00023563,2]
[390910885,1760212234963,-500.0,0.00023563,2]
[390910886,1760212234972,-500.0,0.00023563,2]
[390910887,1760212234982,-386.84239245,0.00023563,2]
[390910888,1760212234992,-500.0,0.00023563,2]
[390910889,1760212235003,-500.0,0.00023563,2]
[390910890,1760212235012,-500.0,0.00023563,2]
[390910891,1760212235024,-500.0,0.00023563,2]
[390910892,1760212235034,-500.0,0.00023563,2]
[390910893,1760212235043,-436.21,0.00023563,2]
[390910894,1760212235053,-500.0,0.00023563,2]
[390910895,1760212235062,-500.0,0.00023563,2]
[390910896,1760212235071,-500.0,0.00023563,2]
[390910897,1760212235082,-500.0,0.00023563,2]
[390910898,1760212235092,-414.48304979,0.00023563,2]
[390910899,1760212235101,-500.0,0.00023563,2]
[390910900,1760212235112,-500.0,0.00023563,2]
[390910901,1760212235122,-500.0,0.00023563,2]
[390910902,1760212235131,-500.0,0.00023563,2]
[390910903,1760212235141,-438.72,0.00023563,2]
[390910904,1760212235150,-500.0,0.00023563,2]
[390910905,1760212235160,-500.0,0.00023563,2]
[390910906,1760212235169,-171.34,0.00023563,2]
[390910907,1760212235179,-500.0,0.00023563,2]
[390910908,1760212235188,-500.0,0.00023563,2]
[390910909,1760212235198,-500.0,0.00023563,2]
[390910910,1760212235207,-448.58,0.00023563,2]
[390910911,1760212235217,-500.0,0.00023563,2]
[390910912,1760212235227,-500.0,0.00023563,2]
[390910913,1760212235237,-500.0,0.00023563,2]
[390910914,1760212235248,-500.0,0.00023563,2]
[390910915,1760212235258,-500.0,0.00023563,2]
[390910916,1760212235267,-500.0,0.00023563,2]
[390910917,1760212235277,-500.0,0.00023563,2]
[390910918,1760212235286,-500.0,0.00023563,2]
[390910919,1760212235296,-386.89225713,0.00023563,2]
[390910920,1760212235305,-500.0,0.00023563,2]
[390910921,1760212235315,-209.16,0.00023563,2]
[390910922,1760212235324,-614.74,0.00023563,2]
[390910923,1760212235334,-500.0,0.00023563,2]
[390910924,1760212235344,-608.29035099,0.00023563,2]
[390910925,1760212235354,-500.0,0.00023563,2]
[390910926,1760212235363,-500.0,0.00023563,2]
[390910927,1760212235373,-500.0,0.00023563,2]
[390910928,1760212235383,-500.0,0.00023563,2]
[390910929,1760212235393,-646.41,0.00023563,2]
[390910930,1760212235402,-500.0,0.00023563,2]
[390910931,1760212235411,-189.29,0.00023563,2]
[390910932,1760212235421,-500.0,0.00023563,2]
[390910933,1760212235431,-534.17,0.00023563,2]
[390910934,1760212235440,-500.0,0.00023563,2]
[390910935,1760212235450,-500.0,0.00023563,2]
[390910936,1760212235460,-500.0,0.00023563,2]
[390910937,1760212235469,-287.16,0.00023563,2]
[390910938,1760212235478,-500.0,0.00023563,2]
[390910939,1760212235488,-500.0,0.00023563,2]
[390910940,1760212235497,-500.0,0.00023563,2]
[390910941,1760212235507,-500.0,0.00023563,2]
[390910942,1760212235516,-500.0,0.00023563,2]
[390910943,1760212235526,-500.0,0.00023563,2]
[390910944,1760212235535,-447.02,0.00023563,2]
[390910945,1760212235545,-500.0,0.00023563,2]
[390910946,1760212235554,-500.0,0.00023563,2]
[390910947,1760212235563,-500.0,0.00023563,2]
[390910948,1760212235572,-357.18210763,0.00023563,2]
[390910949,1760212235582,-500.0,0.00023563,2]
[390910950,1760212235591,-500.0,0.00023563,2]
[390910951,1760212235600,-500.0,0.00023563,2]
[390910952,1760212235610,-500.0,0.00023563,2]
[390910953,1760212235619,-622.62,0.00023563,2]
[390910954,1760212235628,-500.0,0.00023563,2]
[390910955,1760212235638,-500.0,0.00023563,2]
[390910956,1760212235647,-500.0,0.00023563,2]
[390910957,1760212235656,-500.0,0.00023563,2]
[390910958,1760212235666,-500.0,0.00023563,2]
[390910959,1760212235675,-500.0,0.00023563,2]
[390910960,1760212235684,-500.0,0.00023563,2]
[390910961,1760212235694,-500.0,0.00023563,2]
[390910962,1760212235703,-390.24,0.00023563,2]
[390910963,1760212235713,-500.0,0.00023563,2]
[390910964,1760212235722,-500.0,0.00023563,2]
[390910965,1760212235731,-500.0,0.00023563,2]
[390910966,1760212235740,-477.0,0.00023563,2]
[390910967,1760212235750,-500.0,0.00023563,2]
[390910968,1760212235759,-500.0,0.00023563,2]
[390910969,1760212235769,-500.0,0.00023563,2]
[390910970,1760212235778,-500.0,0.00023563,2]
[390910971,1760212235789,-500.0,0.00023563,2]
[390910972,1760212235798,-500.0,0.00023563,2]
[390910973,1760212235808,-500.0,0.00023563,2]
[390910974,1760212235818,-500.0,0.00023563,2]
[390910975,1760212235827,-500.0,0.00023563,2]
[390910976,1760212235837,-500.0,0.00023563,2]
[390910977,1760212235846,-500.0,0.00023563,2]
[390910978,1760212235856,-500.0,0.00023563,2]
[390910979,1760212235865,-500.0,0.00023563,2]
[390910980,1760212235874,-500.0,0.00023563,2]
[390910981,1760212235884,-500.0,0.00023563,2]
[390910982,1760212235893,-500.0,0.00023563,2]
[390910983,1760212235903,-500.0,0.00023563,2]
[390910984,1760212235913,-500.0,0.00023563,2]
[390910985,1760212235924,-500.0,0.00023563,2]
[390910986,1760212235933,-500.0,0.00023563,2]
[390910987,1760212235947,-500.0,0.00023563,2]
[390910988,1760212235956,-500.0,0.00023563,2]
[390910989,1760212235966,-500.0,0.00023563,2]
[390910990,1760212235975,-500.0,0.00023563,2]
[390910991,1760212235985,-382.22,0.00023563,2]
[390910992,1760212235995,-500.0,0.00023563,2]
[390910993,1760212236004,-500.0,0.00023563,2]
[390910994,1760212236014,-500.0,0.00023563,2]
[390910995,1760212236025,-500.0,0.00023563,2]
[390910996,1760212236034,-500.0,0.00023563,2]
[390910997,1760212236045,-500.0,0.00023563,2]
[390910998,1760212236055,-500.0,0.00023563,2]
[390910999,1760212236065,-212.55979395,0.00023563,2]
[390911000,1760212236081,-287.44020605,0.00023563,2]
[390911001,1760212236091,-500.0,0.00023563,2]
[390911002,1760212236100,-500.0,0.00023563,2]
[390911003,1760212236110,-594.1,0.00023563,2]
[390911004,1760212236119,-500.0,0.00023563,2]
[390911005,1760212236131,-500.0,0.00023563,2]
[390911006,1760212236141,-567.76,0.00023563,2]
[390911007,1760212236151,-500.0,0.00023563,2]
[390911008,1760212236161,-500.0,0.00023563,2]
[390911009,1760212236171,-500.0,0.00023563,2]
[390911010,1760212236180,-198.17,0.00023563,2]
[390911011,1760212236190,-282.54109076,0.00023563,2]
[390911012,1760212236199,-10472.94060836,0.00023564,2]
[390911013,1760212236210,-662.96138094,0.00023564,2]
[390911014,1760212236248,365.52,0.00019283,2]
[390911015,1760212236280,731.05,0.00021036,2]
[390911016,1760212236330,5000.0,0.0002161,2]
[390911065,1760212238571,-300.0,0.000217,2]
[390911067,1760212238581,-500.0,0.00022584,2]
[390911069,1760212238591,-1096.57,0.00022789,2]
[390911071,1760212238600,-3103.47050308,0.00023564,2]
[390911126,1760212241035,-3e-08,0.00023564,2]
[390911127,1760212241047,-46958.4648049,0.00023564,2]
[390911132,1760212246710,-300.0,0.000217,2]
[390911133,1760212246720,-167.58315163,0.000217,2]
[390911135,1760212249571,-132.41684837,0.000217,2]
[390911136,1760212249581,-5000.0,0.00023328,2]
[390911137,1760212249590,-334.5,0.00023554,10]
[390911138,1760212249599,-308802.16270269,0.00023564,2]
[390911139,1760212249608,-500.0,0.00023564,5]
[390911140,1760212249617,-500.0,0.00023564,5]
[390911141,1760212249626,-501.33344174,0.00023573,2]
[390911142,1760212249635,-500.0,0.00023573,2]
[390911143,1760212249644,-636.47,0.00023578,2]
[390911144,1760212249654,-500.0,0.00023578,2]
[390911145,1760212249663,-500.0,0.00023578,2]
[390911146,1760212249672,-500.0,0.00023578,2]
[390911147,1760212249681,-503.36959007,0.00023578,2]
[390911148,1760212249774,-500.0,0.00023578,2]
[390911149,1760212249785,-500.0,0.00023578,2]
[390911150,1760212249795,-500.0,0.00023578,2]
[390911151,1760212249805,-508.45368658,0.00023578,2]
[390911152,1760212249815,-500.0,0.00023578,2]
[390911153,1760212249824,-500.0,0.00023578,2]
[390911154,1760212249833,-177.15,0.00023578,2]
[390911155,1760212249842,-500.0,0.00023578,2]
[390911156,1760212249851,-500.0,0.00023578,2]
[390911157,1760212249862,-500.0,0.00023578,2]
[390911158,1760212249872,-500.0,0.00023578,2]
[390911159,1760212249882,-500.0,0.00023578,2]
[390911160,1760212249891,-495.65232889,0.00023578,2]
[390911161,1760212249900,-500.0,0.00023578,2]
[390911162,1760212249909,-500.0,0.00023578,2]
[390911163,1760212249918,-500.0,0.00023578,2]
[390911164,1760212249927,-500.0,0.00023578,2]
[390911165,1760212249936,-500.0,0.00023578,2]
[390911166,1760212249948,-500.0,0.00023578,2]
[390911167,1760212249957,-609.12079825,0.00023578,2]
[390911168,1760212249967,-500.0,0.00023578,2]
[390911169,1760212249976,-500.0,0.00023578,2]
[390911170,1760212249986,-500.0,0.00023578,2]
[390911171,1760212249995,-500.0,0.00023578,2]
[390911172,1760212250004,-184.39,0.00023578,2]
[390911173,1760212250014,-500.0,0.00023578,2]
[390911174,1760212250025,-500.0,0.00023578,2]
[390911175,1760212250035,-500.0,0.00023578,2]
[390911176,1760212250044,-500.0,0.00023578,2]
[390911177,1760212250055,-500.0,0.00023578,2]
[390911178,1760212250065,-500.0,0.00023578,2]
[390911179,1760212250075,-500.0,0.00023578,2]
[390911180,1760212250084,-519.45,0.00023578,2]
[390911181,1760212250094,-500.0,0.00023578,2]
[390911182,1760212250106,-500.0,0.00023578,2]
[390911183,1760212250116,-500.0,0.00023578,2]
[390911184,1760212250125,-500.0,0.00023578,2]
[390911185,1760212250135,-500.0,0.00023578,2]
[390911186,1760212250144,-500.0,0.00023578,2]
[390911187,1760212250154,-500.0,0.00023578,2]
[390911188,1760212250163,-500.0,0.00023578,2]
[390911189,1760212250172,-500.0,0.00023578,2]
[390911190,1760212250181,-500.0,0.00023578,2]
[390911191,1760212250190,-500.0,0.00023578,2]
[390911192,1760212250200,-514.98,0.00023578,2]
[390911193,1760212250209,-500.0,0.00023578,2]
[390911194,1760212250219,-500.0,0.00023578,2]
[390911195,1760212250228,-500.0,0.00023578,2]
[390911196,1760212250237,-500.0,0.00023578,2]
[390911197,1760212250246,-500.0,0.00023578,2]
[390911198,1760212250255,-500.0,0.00023578,2]
[390911199,1760212250265,-500.0,0.00023578,2]
[390911200,1760212250274,-500.0,0.00023578,2]
[390911201,1760212250283,-500.0,0.00023578,2]
[390911202,1760212250292,-500.0,0.00023578,2]
[390911203,1760212250303,-500.0,0.00023578,2]
[390911204,1760212250312,-500.0,0.00023578,2]
[390911205,1760212250322,-500.0,0.00023578,2]
[390911206,1760212250331,-500.0,0.00023578,2]
[390911207,1760212250340,-500.0,0.00023578,2]
[390911208,1760212250348,-500.0,0.00023578,2]
[390911209,1760212250357,-500.0,0.00023578,2]
[390911210,1760212250367,-500.0,0.00023578,2]
[390911211,1760212250375,-1500.0,0.00023668,2]
[390911212,1760212250385,-1500.0,0.00023668,2]
[390911213,1760212250394,-500.0,0.00023673,2]
[390911214,1760212250404,-1000.0,0.00023674,2]
[390911215,1760212250414,-500.0,0.00023674,2]
[390911216,1760212250423,-251.42842388,0.000237,2]
[390911217,1760212250432,-151.0,0.000238,9]
[390911218,1760212250442,-500.0,0.00023838,5]
[390911219,1760212250452,-500.0,0.00023838,5]
[390911220,1760212250462,-150.0,0.00023988,7]
[390911221,1760212250471,-500.0,0.00023989,2]
[390911222,1760212250480,-500.0,0.00023989,2]
[390911223,1760212250489,-500.0,0.00023989,2]
[390911224,1760212250499,-500.0,0.00023989,2]
[390911225,1760212250509,-500.0,0.00023989,2]
[390911226,1760212250519,-500.0,0.00023999,2]
[390911227,1760212250529,-151.0,0.00024,10]
[390911228,1760212250540,-300.0,0.00024034,20]
[390911229,1760212250550,-300.0,0.00024034,20]
[390911230,1760212250559,-300.0,0.00024034,20]
[390911231,1760212250569,-300.0,0.00024034,20]
[390911232,1760212250578,-300.0,0.00024034,20]
[390911233,1760212250589,-300.0,0.00024034,20]
[390911234,1760212250597,-300.0,0.00024034,20]
[390911235,1760212250606,-300.0,0.00024034,20]
[390911236,1760212250615,-300.0,0.00024034,20]
[390911237,1760212250626,-300.0,0.00024034,20]
[390911238,1760212250636,-300.0,0.00024034,20]
[390911239,1760212250647,-300.0,0.00024034,20]
[390911240,1760212250657,-300.0,0.00024034,20]
[390911241,1760212250666,-300.0,0.00024034,20]
[390911242,1760212250675,-300.0,0.00024034,20]
[390911243,1760212250683,-600.0,0.00024034,20]
[390911244,1760212250694,-339.0,0.00024041,2]
[390911245,1760212250703,-151.0,0.000241,7]
[390911246,1760212250712,-500.0,0.00024121,2]
[390911247,1760212250723,-151.0,0.000242,9]
[390911248,1760212250732,-1005.15323595,0.00024216,2]
[390911249,1760212250741,-2000.0,0.00024216,2]
[390911250,1760212250751,-277.43826083,0.000243,2]
[390911251,1760212250760,-151.0,0.000244,9]
[390911252,1760212250769,-500.0,0.00024449,2]
[390911253,1760212250778,-151.0,0.000245,8]
[390911254,1760212250788,-420.0,0.00024513,2]
[390911255,1760212250796,-1462.09,0.00024542,2]
[390911256,1760212250807,-151.0,0.000246,6]
[390911257,1760212250815,-1680.0,0.00024627,2]
[390911258,1760212250824,-200.0,0.00024658,15]
[390911259,1760212250834,-1962.88,0.00024664,2]
[390911260,1760212250843,-168.0,0.0002475,2]
[390911261,1760212250854,-168.14177407,0.0002475,9]
[390911262,1760212250864,-2499.9357,0.00024764,2]
[390911263,1760212250873,-208.0913719,0.0002477,2]
[390911264,1760212250883,-500.0,0.00024799,8]
[390911265,1760212250892,-151.0,0.000248,7]
[390911266,1760212250901,-66798.3914873,0.000248,2]
[390911267,1760212250910,-178.663,0.00024807,8]
[390911268,1760212250919,-168.0,0.00024836,2]
[390911269,1760212250928,-500.0,0.00024899,8]
[390911270,1760212250937,-500.0,0.00024899,8]
[390911271,1760212250949,-500.0,0.00024899,8]
[390911272,1760212250957,-500.0,0.00024899,8]
[390911273,1760212250967,-500.0,0.00024899,8]
[390911274,1760212250976,-487.98372454,0.00024899,8]
[390911275,1760212250985,-523687.292526,0.000249,2]
[390911276,1760212250994,-303.44809779,0.000249,2]
[390911277,1760212251003,-18603.8837,0.00024944,2]
[390911278,1760212251013,-168.0,0.00025016,2]
[390911279,1760212251024,-721.51594785,0.00025044,2]
[390911280,1760212251034,-168.0,0.00025051,2]
[390911281,1760212251043,-168.0,0.00025069,2]
[390911282,1760212251054,-200.0,0.000251,7]
[390911283,1760212251064,-500.0,0.00025227,8]
[390911284,1760212251073,-500.0,0.00025227,8]
[390911285,1760212251083,-382.28383136,0.00025227,8]
[390911286,1760212251091,-500.0,0.00025227,8]
[390911287,1760212251101,-150.0,0.00025273,2]
[390911288,1760212251109,-150.0,0.00025273,2]
[390911289,1760212251119,-465.693895,0.00025345,2]
[390911290,1760212251128,-450.0,0.00025418,2]
[390911291,1760212251137,-1551.16451616,0.00025434,2]
[390911292,1760212251147,-168.0,0.00025452,2]
[390911293,1760212251156,-5566.53262394,0.00025482,2]
[390911294,1760212251166,-168.0,0.00025488,2]
[390911295,1760212251175,-19292.2273969,0.00025492,2]
[390911296,1760212251184,-329.45793474,0.000255,2]
[390911297,1760212251193,-151.0,0.00025589,9]
[390911298,1760212251202,-151.0,0.00025589,9]
[390911299,1760212251211,-276.07271824,0.00025589,9]
[390911300,1760212251220,-500.0,0.00025589,9]
[390911301,1760212251228,-186.61502716,0.00025589,9]
[390911302,1760212251238,-151.48361571,0.00025589,9]
[390911303,1760212251247,-151.0,0.00025589,9]
[390911304,1760212251256,-198.35091737,0.00025589,9]
[390911305,1760212251266,-151.0,0.00025589,9]
[390911306,1760212251275,-500.0,0.00025589,9]
[390911307,1760212251283,-151.0,0.00025589,9]
[390911308,1760212251292,-151.0,0.00025589,9]
[390911309,1760212251302,-151.0,0.00025589,9]
[390911310,1760212251311,-151.0,0.00025589,9]
[390911311,1760212251320,-232.23281477,0.00025589,9]
[390911312,1760212251329,-151.1184974,0.00025589,9]
[390911313,1760212251339,-151.0,0.00025589,9]
[390911314,1760212251348,-151.0,0.00025589,9]
[390911315,1760212251357,-151.0,0.00025589,9]
[390911316,1760212251367,-500.0,0.00025589,9]
[390911317,1760212251376,-151.0,0.00025589,9]
[390911318,1760212251385,-151.0,0.00025589,9]
[390911319,1760212251394,-151.0,0.00025589,9]
[390911320,1760212251404,-151.0,0.00025589,9]
[390911321,1760212251413,-198.0,0.00025589,9]
[390911322,1760212251422,-151.0,0.00025589,9]
[390911323,1760212251432,-151.0,0.00025589,9]
[390911324,1760212251442,-151.0,0.00025589,9]
[390911325,1760212251451,-500.0,0.00025589,9]
[390911326,1760212251460,-500.0,0.00025589,9]
[390911327,1760212251470,-151.0,0.00025589,9]
[390911328,1760212251479,-151.0,0.00025589,9]
[390911329,1760212251489,-151.0,0.00025589,9]
[390911330,1760212251498,-151.0,0.00025589,9]
[390911331,1760212251508,-151.0,0.00025589,9]
[390911332,1760212251517,-500.0,0.00025589,9]
[390911333,1760212251526,-151.0,0.00025589,9]
[390911334,1760212251536,-151.0,0.000256,11]
[390911335,1760212251545,-151.0,0.00025644,9]